[Event "Prague Festival Challengers 2024"]
[Site "Prague"]
[Date "2024.02.27"]
[Round "1.1"]
[White "Korobov, Anton"]
[Black "Viashali, Rameshbabu"]
[Result "1-0"]
[ECO "D38"]
[WhiteElo "2663"]
[BlackElo "2481"]
[Annotator "TA"]
[PlyCount "57"]
[EventDate "2024.02.22"]
[EventType "tourn"]
[EventCountry "CZE"]
[SourceTitle "playchess.com"]
[Source "ChessBase"]
[SourceQuality "1"]
[TimeControl "40/5400+30:1800+30"]

{[%evp 14,57,20,20,24,16,19,27,29,10,19,16,27,23,23,34,66,61,129,125,132,151,160,158,152,174,157,168,185,171,175,181,179,178,288,300,288,280,390,375,468,444,433,391,508,502]} 1. d4 {[%emt 0:00:03]} d5 {[%emt 0:00:38]} 2. c4 {[%emt 0:00:08]} e6 {[%emt 0:00:06]} 3. Nf3 {[%emt 0:00:13]} Nf6 {[%emt 0:00:17]} 4. Nc3 {[%emt 0:00:22]} Nbd7 {[%emt 0:00:28]} 5. cxd5 {[%emt 0:01:56]} exd5 {[%emt 0:00:05]} 6. Bg5 {[%emt 0:00:18]} Bb4 {[%emt 0:00:18]} 7. Qc2 {[%emt 0:00:47]} c5 {[%emt 0:00:28]} 8. e3 {[%emt 0:00:14]} O-O {[%emt 0:02:59]} 9. Bd3 {[%emt 0:00:20][%cal Od3h7] Black must now prevent Bxh7+!} Qb6 {[%emt 0:04:58]} 10. O-O {[%emt 0:00:54] And now Na4 would win.} c4 {[%emt 0:00:51] White has an edge.} 11. Bf5 {[%emt 0:00:41]} Qc6 {[%emt 0:01:07]} 12. a4 {[%emt 0:11:35]} Re8 {[%emt 0:08:37]} 13. Rfc1 {[%emt 0:01:46]} h6 {[%emt 0:23:27]} 14. Bh4 {[%emt 0:01:10]} a5 {[%emt 0:05:29]} 15. Nb5 {[%emt 0:04:35] White is more active.} Nf8 {[%emt 0:16:53] [#]} (15... Nb6 $14) 16. b3 $1 $16 {[%emt 0:04:17]} c3 {[%emt 0:23:42]} 17. Bd3 {[%emt 0:03:53]} Ne4 {[%emt 0:01:20]} 18. Ne5 {[%emt 0:03:29] Prevents Ng6} Qb6 {[%emt 0:00:51]} 19. Bxe4 {[%emt 0:02:12]} dxe4 {[%emt 0:00:08]} 20. Nc4 {[%emt 0:02:33] A dynamic duo of knights.} Qc6 {[%emt 0:02:24]} 21. Nxc3 {[%emt 0:01:40]} Bxc3 {[%emt 0:02:13]} 22. Qxc3 {[%emt 0:00:22]} Be6 {[%emt 0:00:37][%cal Bc8e6,Be6d7,Bd7c6][%mdl 32]} 23. Qd2 {[%emt 0:01:47]} (23. Nxa5 $2 {perishes.} Qxc3 24. Rxc3 Rxa5 $19) 23... Qa6 {[%emt 0:02:31]} (23... Bd5 {is a better defense.} 24. Nxa5 Qa6) 24. d5 $18 {[%emt 0:00:42]} Bd7 {[%emt 0:00:59]} 25. Bg3 {[%emt 0:00:54]} Ng6 {[%emt 0:00:54]} 26. Qd4 {[%emt 0:03:11]} Rad8 {[%emt 0:00:37]} 27. Nd6 {[%emt 0:01:13][%cal Bc4d6,Bd6e4,Be4d6][%mdl 32]} Re7 {[%emt 0:00:20]} 28. Nxe4 {[%emt 0:00:20]} Bc6 {[%emt 0:00:39]} 29. Nd6 {[%emt 0:00:54] Weighted Error Value: White=0.05 (flawless) /Black=0.29 (precise) .  Mistake:       	---       	Black=2      Inaccurate:     	---       	Black=2      OK:         	White=15    	Black=6      Strong:       	White=1     	---} 1-0

[Event "Prague Festival Challengers 2024"]
[Site "Prague"]
[Date "2024.02.27"]
[Round "1.2"]
[White "Mishra, Abhimanyu"]
[Black "Gurel, Ediz"]
[Result "1/2-1/2"]
[ECO "D12"]
[WhiteElo "2627"]
[BlackElo "2560"]
[Annotator "TA"]
[PlyCount "83"]
[EventDate "2024.02.22"]
[EventType "tourn"]
[EventCountry "CZE"]
[SourceTitle "playchess.com"]
[Source "ChessBase"]
[SourceQuality "1"]
[TimeControl "40/5400+30:1800+30"]

{[%evp 17,83,40,36,26,38,0,35,34,38,33,43,40,48,44,40,40,38,44,40,39,35,37,34,4,47,19,14,20,29,6,7,0,0,0,0,0,0,0,0,0,0,0,0,0,54,58,58,59,64,0,0,0,0,0,0,0,0,1,7,8,4,7,7,0,0,0,0,0]} 1. d4 {[%emt 0:00:02]} d5 {[%emt 0:00:08]} 2. Nf3 {[%emt 0:00:10]} Nf6 {[%emt 0:00:09]} 3. c4 {[%emt 0:00:14]} c6 {[%emt 0:00:12]} 4. e3 {[%emt 0:00:18]} Bf5 {[%emt 0:00:15]} 5. Nc3 {[%emt 0:00:29]} e6 {[%emt 0:00:08]} 6. Nh4 {[%emt 0:00:38]} Be4 {[%emt 0:00:09]} 7. f3 {[%emt 0:00:26]} Bg6 {[%emt 0:00:06]} 8. Qb3 {[%emt 0:00:54]} Qb6 {[%emt 0:00:18]} 9. Nxg6 {[%emt 0:02:19]} hxg6 {[%emt 0:00:05]} 10. Bd2 {[%emt 0:01:31]} Nbd7 {[%emt 0:00:54]} 11. Kf2 {[%emt 0:00:57]} Be7 {[%emt 0:02:49]} 12. Qxb6 {[%emt 0:02:14] White is slightly better.} axb6 {[%emt 0:01:02]} 13. a4 {[%emt 0:00:21]} Bb4 {[%emt 0:04:28]} 14. Be2 {[%emt 0:06:03]} dxc4 {[%emt 0:07:14]} 15. Bxc4 {[%emt 0:02:14]} e5 {[%emt 0:01:06]} 16. h4 {[%emt 0:08:48]} O-O {[%emt 0:14:08]} 17. g4 {[%emt 0:07:30]} Rfd8 {[%emt 0:00:17][%cal Od7c5]} 18. Rhd1 {[%emt 0:13:50]} Kf8 {[%emt 0:12:04]} 19. Bb3 {[%emt 0:11:33]} Ne8 {[%emt 0:08:43]} 20. g5 {[%emt 0:01:29]} Ba5 {[%emt 0:19:21]} 21. Ne4 {[%emt 0:18:26]} exd4 {[%emt 0:00:15]} 22. exd4 {[%emt 0:00:09]} Bxd2 {[%emt 0:00:35]} 23. Rxd2 {[%emt 0:00:14]} b5 $1 {[%emt 0:02:45]} 24. a5 {[%emt 0:03:17]} Nb6 {[%emt 0:04:04]} 25. Rdd1 {[%emt 0:01:50]} Nc4 {[%emt 0:03:15]} 26. Bxc4 {[%emt 0:00:52]} bxc4 {[%emt 0:00:02]} 27. Nc5 {[%emt 0:00:47]} Nd6 {[%emt 0:03:17]} 28. Ra4 {[%emt 0:02:11]} Ra7 {[%emt 0:00:58]} 29. Rda1 {[%emt 0:04:04]} Kg8 {[%emt 0:03:50]} 30. Re1 {[%emt 0:04:17]} Re8 {[%emt 0:04:17] Against Re7} (30... Rda8 $11 31. Rea1 Kh7) 31. Rxe8+ $14 {[%emt 0:02:10]} Nxe8 {[%emt 0:00:01][%mdl 4096] Endgame. KRN-KRN} 32. Ke3 {[%emt 0:02:32]} (32. Rxc4 Rxa5 33. Nxb7 Rb5) 32... Nd6 {[%emt 0:01:36] [#]} 33. d5 {[%emt 0:02:45] White is more active.} cxd5 $11 {[%emt 0:03:14] The position is equal.} 34. Kd4 {[%emt 0:00:07]} Nb5+ $1 {[%emt 0:00:43]} 35. Kxd5 {[%emt 0:00:06]} c3 {[%emt 0:00:01]} 36. b4 {[%emt 0:00:53] Nb3 is the strong threat.} c2 {[%emt 0:01:08]} 37. Ra1 {[%emt 0:00:06] aiming for Rc1.} b6 {[%emt 0:01:09]} 38. Nb3 {[%emt 0:01:44] [#] Hoping for Kc6.} (38. axb6 $2 {loses.} Rxa1 39. b7 Rd1+ (39... c1=Q $2 40. b8=Q+ Kh7 41. Qxb5 $19) 40. Kc6 Nd4+ (40... c1=R $2 {perishes.} 41. b8=Q+ Kh7 42. Qxb5 $18) 41. Kb6 c1=Q $19 (41... c1=B $2 {is the wrong capture.} 42. b8=Q+ Kh7 43. Qb7 $18)) (38. Kc6 $2 bxc5 39. Kxb5 cxb4 $19 (39... Rb7+ $2 40. Kxc5 Rd7 41. Rc1 $18)) 38... bxa5 $1 {[%emt 0:01:28]} 39. bxa5 {[%emt 0:00:47] Strongly threatening Kc6.} Rc7 {[%emt 0:02:32]} 40. Rc1 {[%emt 0:00:37]} Nc3+ {[%emt 0:00:48]} 41. Kd6 {[%emt 0:02:28]} Nb5+ {[%emt 0:02:32]} 42. Kd5 {[%emt 0:05:36] Weighted Error Value: White=0.09 (flawless) /Black=0.06 (flawless) .  Mistake:       	White=1     	Black=1      Inaccurate:     	White=3     	Black=2      OK:         	White=17    	Black=12     Best:        	White=1     	Black=5      Strong:       	---       	Black=3} 1/2-1/2

[Event "Prague Festival Challengers 2024"]
[Site "Prague"]
[Date "2024.02.27"]
[Round "1.3"]
[White "Finek, Vaclav"]
[Black "Stalmach, Richard"]
[Result "1/2-1/2"]
[ECO "E11"]
[WhiteElo "2416"]
[BlackElo "2433"]
[Annotator "TA"]
[PlyCount "96"]
[EventDate "2024.02.22"]
[EventType "tourn"]
[EventCountry "CZE"]
[SourceTitle "playchess.com"]
[Source "ChessBase"]
[SourceQuality "1"]
[TimeControl "40/5400+30:1800+30"]

{[%evp 13,96,4,2,2,0,-6,0,-12,-6,-16,35,0,-12,4,87,107,97,93,108,113,120,69,83,76,76,77,85,62,68,67,83,45,86,85,66,68,108,52,132,110,113,106,86,39,33,16,17,10,20,-49,-47,-44,-39,-39,-32,-38,-39,-109,-104,-113,-114,-112,-98,-116,-24,-21,0,0,0,0,0,0,0,0,0,0,0,0,0,0,0,0,0,0,0]} 1. d4 {[%emt 0:00:02]} Nf6 {[%emt 0:00:14]} 2. c4 {[%emt 0:00:06]} e6 {[%emt 0:00:06]} 3. g3 {[%emt 0:00:04]} d5 {[%emt 0:00:26]} 4. Nf3 {[%emt 0:00:09]} Bb4+ {[%emt 0:00:10]} 5. Bd2 {[%emt 0:00:05]} Be7 {[%emt 0:00:05]} 6. Bg2 {[%emt 0:00:04]} O-O {[%emt 0:00:07]} 7. O-O {[%emt 0:00:04]} Nbd7 {[%emt 0:00:20]} 8. Bc3 {[%emt 0:01:24]} b6 {[%emt 0:00:15]} 9. cxd5 {[%emt 0:00:05]} exd5 {[%emt 0:00:26]} 10. Bd2 {[%emt 0:00:06]} Ne4 {[%emt 0:13:35]} 11. Bf4 {[%emt 0:05:10]} g5 {[%emt 0:04:31]} (11... Bb7 $11) 12. Bd2 {[%emt 0:10:33]} (12. Be3 $14) 12... Bb7 $11 {[%emt 0:06:34]} 13. Nc3 {[%emt 0:01:16][%cal Bb1c3,Bc3d1,Bd1e3,Be3f5][%mdl 32]} Nd6 {[%emt 0:05:21] [#]} (13... f5 $11 {keeps the balance.}) 14. Qc1 $1 $16 {[%emt 0:11:24]} f6 {[%emt 0:03:13]} 15. h4 {[%emt 0:00:45]} h6 {[%emt 0:02:02]} 16. Bh3 {[%emt 0:03:47]} Kg7 {[%emt 0:01:41]} 17. Be6 {[%emt 0:05:41]} (17. Kg2 $16) 17... c6 $14 {[%emt 0:01:18]} 18. Nd1 {[%emt 0:04:56]} Rh8 {[%emt 0:10:05]} 19. Ne3 {[%emt 0:02:40]} Nf8 {[%emt 0:00:35]} 20. Nf5+ {[%emt 0:01:46]} Nxf5 {[%emt 0:01:04]} 21. Bxf5 {[%emt 0:00:07]} Bc8 {[%emt 0:03:59]} 22. Bd3 {[%emt 0:06:16] White is more active.} (22. Qxc6 $2 Bxf5 23. Rfc1 Rc8 $19) 22... Bh3 {[%emt 0:03:47]} 23. Re1 {[%emt 0:02:47]} Rc8 {[%emt 0:00:45]} 24. e4 {[%emt 0:08:17]} Ne6 {[%emt 0:02:12]} 25. Bc3 {[%emt 0:04:27]} (25. Qb1 $16) 25... Re8 {[%emt 0:06:00]} (25... Qd7 $14) 26. Qd1 $16 {[%emt 0:05:01] Kh2 is the strong threat.} Qd7 {[%emt 0:02:35][%cal Oe6f4]} 27. exd5 {[%emt 0:02:56]} cxd5 {[%emt 0:02:12]} 28. Nh2 {[%emt 0:04:30]} ({White should play} 28. a4 $16) 28... Bd6 $14 {[%emt 0:04:06]} 29. Qh5 {[%emt 0:02:48] [#] Strongly threatening hxg5.} (29. Qf3 {is interesting.} gxh4 30. Qh5 Qf7 31. Qxh4 Ng5 32. Kh1) 29... Qf7 {[%emt 0:02:29]} 30. Qxf7+ {[%emt 0:00:54]} Kxf7 {[%emt 0:00:03]} 31. Be2 {[%emt 0:00:32]} (31. h5 $11) 31... gxh4 $1 $15 {[%emt 0:06:25]} 32. Bh5+ {[%emt 0:00:49]} Ke7 {[%emt 0:01:18]} 33. Bxe8 {[%emt 0:00:33]} (33. gxh4 $2 Rg8+ $19) 33... hxg3 {[%emt 0:00:25]} 34. fxg3 {[%emt 0:06:22]} Rxe8 {[%emt 0:00:05]} 35. Nf1 {[%emt 0:00:50] White is weak on the light squares} (35. Re3 $15) 35... Rg8 $17 {[%emt 0:00:47][%cal Oe7d7][%mdl 1024] Black has strong compensation.} 36. Re3 {[%emt 0:00:23]} Kd7 {[%emt 0:05:12]} 37. Kf2 {[%emt 0:03:39]} f5 {[%emt 0:02:01]} 38. Nd2 {[%emt 0:05:00]} f4 {[%emt 0:01:28]} (38... Ng5 $17 39. Rae1 Bg4) 39. gxf4 $11 {[%emt 0:00:04]} Rg2+ {[%emt 0:00:30] The position is equal.} 40. Kf1 $1 {[%emt 0:00:40]} Rg3+ {[%emt 0:04:13]} (40... Rxd2+ $2 {too greedy.} 41. Rxh3 Rc2 42. Rxh6 $18 (42. f5 Ng5 $18)) 41. Kf2 {[%emt 0:30:41]} Rg2+ {[%emt 0:30:07]} 42. Kf1 $1 {[%emt 0:00:04]} Rh2+ {[%emt 0:01:36]} (42... Rxd2+ 43. Rxh3 Rc2 44. f5 $18 (44. Rxh6 Bxf4 45. Rh7+ Kc6 $18)) 43. Kg1 $1 {[%emt 0:00:41]} Bxf4 {[%emt 0:00:09] Threatens to win with ...Rg2+.} 44. Rf3 {[%emt 0:01:20]} Rg2+ $1 {[%emt 0:01:14]} 45. Kh1 {[%emt 0:01:55] Nf1 would now be deadly.} Rh2+ {[%emt 0:02:15]} 46. Kg1 {[%emt 0:00:05]} Rg2+ $1 {[%emt 0:00:00]} 47. Kh1 {[%emt 0:00:00] Black must now prevent Nf1.} Rh2+ {[%emt 0:00:00]} 48. Kg1 {[%emt 0:00:00]} Rg2+ {[%emt 0:00:00] Weighted Error Value: White=0.13 (very precise) /Black=0.13 (very precise) .  Mistake:       	White=6     	Black=4      Inaccurate:     	White=1     	Black=1      OK:         	White=10    	Black=16     Best:        	White=7     	Black=7      Strong:       	White=4     	Black=3} 1/2-1/2

[Event "Prague Festival Challengers 2024"]
[Site "Prague"]
[Date "2024.02.27"]
[Round "1.4"]
[White "Rodshtein, Maxim"]
[Black "L'Ami, Erwin"]
[Result "1/2-1/2"]
[ECO "D78"]
[WhiteElo "2580"]
[BlackElo "2627"]
[Annotator "TA"]
[PlyCount "61"]
[EventDate "2024.02.22"]
[EventType "tourn"]
[EventCountry "CZE"]
[SourceTitle "playchess.com"]
[Source "ChessBase"]
[SourceQuality "1"]
[TimeControl "40/5400+30:1800+30"]

{[%evp 18,61,21,12,19,17,18,7,24,0,0,4,23,19,30,8,15,10,16,12,25,4,8,6,14,0,0,0,0,0,0,0,0,0,0,0,0,0,0,0,0,0,0,0,0,0]} 1. Nf3 {[%emt 0:00:06]} d5 {[%emt 0:00:40]} 2. g3 {[%emt 0:00:16]} g6 {[%emt 0:03:09]} 3. Bg2 {[%emt 0:00:42]} Bg7 {[%emt 0:00:09]} 4. d4 {[%emt 0:00:39]} Nf6 {[%emt 0:02:04]} 5. c4 {[%emt 0:00:49]} c6 {[%emt 0:00:35]} 6. O-O {[%emt 0:01:38]} O-O {[%emt 0:00:50]} 7. b3 {[%emt 0:01:59]} a5 {[%emt 0:08:48]} 8. Nc3 {[%emt 0:01:28]} Ne4 {[%emt 0:04:03]} 9. Bb2 {[%emt 0:01:54]} Bf5 {[%emt 0:01:55]} 10. e3 {[%emt 0:17:01]} Nxc3 {[%emt 0:06:27]} 11. Bxc3 {[%emt 0:00:05]} Be4 {[%emt 0:00:18]} 12. Bh3 {[%emt 0:08:43]} e6 {[%emt 0:06:00]} 13. Nd2 {[%emt 0:09:05]} Bd3 {[%emt 0:04:32]} 14. Re1 {[%emt 0:01:40]} Nd7 {[%emt 0:05:21]} 15. Rc1 {[%emt 0:04:27]} Nf6 {[%emt 0:07:08]} 16. Bb2 {[%emt 0:11:37] Rc3 would now be deadly.} h5 $1 {[%emt 0:03:52]} 17. Bg2 {[%emt 0:00:28]} b5 {[%emt 0:10:40]} 18. Nf3 {[%emt 0:07:03]} Be4 {[%emt 0:01:47]} ({Much worse is} 18... dxc4 19. Ne5 $16) 19. Ne5 {[%emt 0:00:44] [#] And now f3 would win.} Bxg2 {[%emt 0:02:02] The position is equal.} 20. Kxg2 {[%emt 0:00:05]} Qb6 {[%emt 0:02:46]} 21. cxd5 {[%emt 0:10:48]} cxd5 {[%emt 0:00:17]} 22. Rc6 {[%emt 0:00:20]} Qb7 {[%emt 0:00:51]} 23. Qc2 {[%emt 0:00:53]} Rfc8 {[%emt 0:00:55]} 24. Rc1 {[%emt 0:00:25][%cal Be1c1,Bc1c6,Bc6a6][%mdl 32]} Rxc6 {[%emt 0:00:28]} 25. Qxc6 {[%emt 0:01:00]} Qxc6 {[%emt 0:01:23]} 26. Rxc6 {[%emt 0:00:25]} b4 {[%emt 0:05:28]} 27. a4 {[%emt 0:07:45]} bxa3 {[%emt 0:02:41]} 28. Bxa3 {[%emt 0:00:05]} Ne4 {[%emt 0:01:42]} 29. Nd7 {[%emt 0:06:23]} Nd2 {[%emt 0:02:53]} 30. Nc5 {[%emt 0:01:46]} Rb8 {[%emt 0:01:50]} 31. Ra6 {[%emt 0:00:31] A rather calm draw.   Weighted Error Value: White=0.06 (flawless) /Black=0.02 (flawless) .  OK:         	White=6     	Black=12     Best:        	White=1     	---        Strong:       	---       	Black=1} 1/2-1/2

[Event "Prague Festival Challengers 2024"]
[Site "Prague"]
[Date "2024.02.27"]
[Round "1.5"]
[White "Santos Latasa, Jaime"]
[Black "Hrbek, Stepan"]
[Result "1/2-1/2"]
[ECO "A13"]
[WhiteElo "2615"]
[BlackElo "2426"]
[Annotator "TA"]
[PlyCount "61"]
[EventDate "2024.02.22"]
[EventType "tourn"]
[EventCountry "CZE"]
[SourceTitle "playchess.com"]
[Source "ChessBase"]
[SourceQuality "1"]
[TimeControl "40/5400+30:1800+30"]

{[%evp 14,61,27,1,25,0,8,0,0,0,8,8,10,0,0,-25,0,0,30,24,26,20,21,30,43,25,25,33,31,28,40,18,11,0,0,0,24,14,12,0,4,0,0,0,0,0,0,0,0,0]} 1. Nf3 {[%emt 0:00:04]} d5 {[%emt 0:00:40]} 2. g3 {[%emt 0:00:06]} Nf6 {[%emt 0:01:49]} 3. Bg2 {[%emt 0:00:05]} c5 {[%emt 0:00:47]} 4. O-O {[%emt 0:00:09]} e6 {[%emt 0:00:03]} 5. c4 {[%emt 0:00:05]} d4 {[%emt 0:00:56]} 6. e3 {[%emt 0:00:05]} Nc6 {[%emt 0:00:07]} 7. exd4 {[%emt 0:00:04]} cxd4 {[%emt 0:00:07]} 8. d3 {[%emt 0:00:04]} Bc5 {[%emt 0:04:38]} 9. Nbd2 {[%emt 0:00:18]} O-O {[%emt 0:03:54]} 10. Nb3 {[%emt 0:00:24]} Be7 {[%emt 0:00:15]} 11. Re1 {[%emt 0:00:07]} a5 {[%emt 0:01:48]} 12. a4 {[%emt 0:00:10]} Qb6 {[%emt 0:09:54]} 13. Bd2 {[%emt 0:20:37]} Nd7 {[%emt 0:06:11]} 14. Ng5 {[%emt 0:04:38]} Bxg5 {[%emt 0:11:08]} 15. Bxg5 {[%emt 0:00:39]} Nc5 {[%emt 0:00:23]} 16. Nxc5 {[%emt 0:00:52]} Qxc5 {[%emt 0:01:07]} 17. Bd2 {[%emt 0:01:14]} Ra6 {[%emt 0:08:48]} 18. f4 {[%emt 0:05:17]} Rb6 {[%emt 0:04:31]} 19. Rb1 {[%emt 0:00:53]} f6 {[%emt 0:01:43]} 20. b3 {[%emt 0:01:04]} Nb4 {[%emt 0:03:27]} 21. Qe2 {[%emt 0:03:12]} Re8 {[%emt 0:04:33]} 22. Be4 {[%emt 0:04:19]} Bd7 {[%emt 0:02:34]} 23. h4 {[%emt 0:03:58]} Bc6 {[%emt 0:03:00]} 24. Qf3 {[%emt 0:02:08]} Bxe4 {[%emt 0:05:35]} 25. Rxe4 {[%emt 0:00:15]} Rd6 {[%emt 0:00:09] The position is equal.} 26. Bxb4 {[%emt 0:07:33]} Qxb4 {[%emt 0:00:38]} 27. Qh5 {[%emt 0:01:28]} Re7 {[%emt 0:02:30]} 28. Qd1 {[%emt 0:00:50]} Rb6 {[%emt 0:03:20]} 29. Qc2 {[%emt 0:01:08]} (29. Rxd4 $2 {loses.} Qc5 30. Kh2 Qxd4 $19) 29... Qc3 {[%emt 0:02:14]} 30. Re2 {[%emt 0:00:59]} Qxc2 {[%emt 0:02:22]} 31. Rxc2 {[%emt 0:00:08] Weighted Error Value: White=0.06 (flawless) /Black=0.06 (flawless) .  Inaccurate:     	---       	Black=1      OK:         	White=5     	Black=12} 1/2-1/2

[Event "Prague Festival Challengers 2024"]
[Site "Prague"]
[Date "2024.02.28"]
[Round "2.1"]
[White "Hrbek, Stepan"]
[Black "Korobov, Anton"]
[Result "1/2-1/2"]
[ECO "B48"]
[WhiteElo "2426"]
[BlackElo "2663"]
[Annotator "TA"]
[PlyCount "66"]
[EventDate "2024.02.22"]
[EventType "tourn"]
[EventCountry "CZE"]
[SourceTitle "playchess.com"]
[Source "ChessBase"]
[SourceQuality "1"]
[TimeControl "40/5400+30:1800+30"]

{[%evp 11,66,28,36,8,26,0,0,0,27,29,3,-30,-43,-33,-37,-27,-38,-35,-32,-28,0,0,11,0,-7,-4,-8,-16,-22,-7,0,0,12,-8,-8,-4,-6,-5,-8,-25,-33,-37,-20,-22,-28,-25,-36,-15,0,0,0,-1,0,0,0,0,2]} 1. e4 {[%emt 0:00:09]} c5 {[%emt 0:00:05]} 2. Nf3 {[%emt 0:00:10]} e6 {[%emt 0:00:05]} 3. d4 {[%emt 0:00:19]} cxd4 {[%emt 0:00:06]} 4. Nxd4 {[%emt 0:00:05]} Nc6 {[%emt 0:00:05]} 5. Nc3 {[%emt 0:00:13]} Qc7 {[%emt 0:00:06]} 6. Be3 {[%emt 0:00:29]} a6 {[%emt 0:00:11]} 7. g4 {[%emt 0:00:19]} h6 {[%emt 0:00:20]} 8. h4 {[%emt 0:00:23]} Nf6 {[%emt 0:00:45]} 9. Nxc6 {[%emt 0:00:52]} bxc6 {[%emt 0:00:54]} 10. Qf3 {[%emt 0:01:02]} Rb8 {[%emt 0:02:59]} 11. g5 {[%emt 0:22:22]} hxg5 {[%emt 0:01:14]} 12. hxg5 {[%emt 0:00:06]} Rxh1 {[%emt 0:00:20]} 13. Qxh1 {[%emt 0:00:09]} Ng4 {[%emt 0:01:11]} 14. Bc1 {[%emt 0:00:23]} d5 {[%emt 0:07:53]} 15. f4 {[%emt 0:18:28]} Qb6 {[%emt 0:08:50]} 16. Nd1 {[%emt 0:01:28] Prevents Qf2+} Qb4+ {[%emt 0:08:44]} 17. c3 {[%emt 0:04:34]} Qxe4+ {[%emt 0:00:07]} 18. Qxe4 {[%emt 0:00:05]} dxe4 {[%emt 0:00:06]} 19. Bg2 {[%emt 0:00:12]} f5 {[%emt 0:06:38] [#] ...Bd6 is the strong threat.} 20. gxf6 {[%emt 0:03:18]} gxf6 {[%emt 0:07:42] Threatens to win with ...f5.} 21. Bxe4 {[%emt 0:00:24]} c5 {[%emt 0:00:01]} 22. b3 {[%emt 0:11:33]} f5 {[%emt 0:02:18]} 23. Bc6+ {[%emt 0:02:30]} Bd7 {[%emt 0:00:15]} 24. Bf3 {[%emt 0:00:18]} Bg7 {[%emt 0:00:51]} 25. Ba3 {[%emt 0:07:35]} Rc8 {[%emt 0:04:05]} 26. Rb1 {[%emt 0:07:46]} Bc6 {[%emt 0:08:33]} 27. Bxc6+ {[%emt 0:02:31]} Rxc6 {[%emt 0:01:47]} 28. Ke2 {[%emt 0:00:55]} Bh6 {[%emt 0:10:25]} 29. Bc1 {[%emt 0:00:09]} Nf6 {[%emt 0:00:29] The position is equal.} 30. c4 {[%emt 0:02:13]} Ne4 {[%emt 0:02:05]} 31. Be3 {[%emt 0:02:51]} Kf7 {[%emt 0:07:05]} 32. Rc1 {[%emt 0:01:01]} Bg7 {[%emt 0:05:01]} 33. Rc2 {[%emt 0:01:20]} e5 {[%emt 0:01:56] Weighted Error Value: White=0.05 (flawless) /Black=0.06 (flawless) .  Inaccurate:     	White=1     	Black=2      OK:         	White=14    	Black=12     Best:        	White=3     	---} 1/2-1/2

[Event "Prague Festival Challengers 2024"]
[Site "Prague"]
[Date "2024.02.28"]
[Round "2.2"]
[White "Gurel, Ediz"]
[Black "Vaishali, Rameshbabu"]
[Result "1-0"]
[ECO "B33"]
[WhiteElo "2560"]
[BlackElo "2481"]
[Annotator "TA"]
[PlyCount "55"]
[EventDate "2024.02.22"]
[EventType "tourn"]
[EventCountry "CZE"]
[SourceTitle "playchess.com"]
[Source "ChessBase"]
[SourceQuality "1"]
[TimeControl "40/5400+30:1800+30"]

{[%evp 25,55,10,36,-18,25,31,47,39,63,60,73,83,237,222,264,254,529,542,602,575,729,696,1068,1034,1091,1070,1053,993,989,999,1959,1956]} 1. e4 {[%emt 0:00:03]} c5 {[%emt 0:00:26]} 2. Nf3 {[%emt 0:00:13][%cal Bg1f3,Bf3d4,Bd4b5,Bb5a3,Ba3c2][%mdl 32]} e6 {[%emt 0:00:10]} 3. d4 {[%emt 0:00:10]} cxd4 {[%emt 0:00:08]} 4. Nxd4 {[%emt 0:00:05]} Nf6 {[%emt 0:00:06]} 5. Nc3 {[%emt 0:00:08]} Nc6 {[%emt 0:00:05]} 6. Ndb5 {[%emt 0:00:08]} d6 {[%emt 0:00:11]} 7. Bf4 {[%emt 0:00:08]} e5 {[%emt 0:00:06]} 8. Bg5 {[%emt 0:00:04]} a6 {[%emt 0:00:03]} 9. Na3 {[%emt 0:00:04]} b5 {[%emt 0:00:04]} 10. Nd5 {[%emt 0:00:04]} Be7 {[%emt 0:00:04]} 11. Bxf6 {[%emt 0:00:04]} Bxf6 {[%emt 0:00:04]} 12. c3 {[%emt 0:00:05]} Rb8 {[%emt 0:00:14]} 13. Nc2 {[%emt 0:00:06]} Bg5 {[%emt 0:00:13] [#]} 14. h4 {[%emt 0:00:16]} Bh6 {[%emt 0:02:18]} 15. a4 {[%emt 0:00:15]} bxa4 {[%emt 0:01:27]} 16. Ncb4 {[%emt 0:00:28] White is slightly better.} Nxb4 {[%emt 0:18:06]} 17. Nxb4 {[%emt 0:01:25]} Bd7 {[%emt 0:04:08] Inhibits Nc6. Threatens to win with ...a5.} 18. Qxd6 {[%emt 0:07:17]} Rb6 $2 {[%emt 0:01:50] [#]} (18... Be6 $16 {was necessary.} 19. Qc6+ (19. Qxe5 $2 Qd2#) 19... Bd7) 19. Qc5 $1 $18 {[%emt 0:02:48]} ({Stronger than} 19. Qxe5+ Re6 20. Qd4 O-O $11) 19... Bg4 {[%emt 0:19:40]} 20. Nd5 {[%emt 0:01:06]} (20. Rxa4 $2 Bd2#) 20... Rxb2 {[%emt 0:00:43]} (20... Rd6 21. Rxa4 O-O 22. Bxa6 (22. Rxa6 Rxa6 23. Bxa6 Qa8 $18) 22... Kh8) 21. Bxa6 {[%emt 0:00:37] White is clearly winning.} Bd2+ {[%emt 0:02:21]} 22. Kf1 {[%emt 0:00:10]} f6 {[%emt 0:06:44]} 23. h5 {[%emt 0:08:57]} (23. Rxa4 $2 Rb1#) 23... Kf7 {[%emt 0:09:30]} 24. Bc4 {[%emt 0:00:55]} (24. Rxa4 $2 Rb1#) 24... Be6 {[%emt 0:00:27]} 25. Nc7 {[%emt 0:00:29][%csl Gc7][%cal Rc4e6]} Bxc4+ {[%emt 0:00:26]} 26. Qxc4+ {[%emt 0:00:08]} Ke7 {[%emt 0:00:02]} 27. Rxa4 {[%emt 0:07:16] Nd5+ would kill now.} Rb1+ {[%emt 0:07:26]} 28. Ke2 {[%emt 0:01:28] Black did not feel at home in the position after the opening.   Weighted Error Value: White=0.08 (flawless) /Black=0.79.  Mistake:       	---       	Black=2      Inaccurate:     	---       	Black=2      OK:         	White=2     	Black=1      Best:        	White=2     	---        Strong:       	White=1     	---} 1-0